fUST/lending_fUST_20250716
["ID","MTS","AMOUNT","RATE_DAILY","PERIOD"]
[372509897,1752664245238,-460.0,0.00021369,2]
[372509899,1752664245247,-460.0,0.00021369,2]
[372509901,1752664245256,-505.56,0.00021369,2]
[372509902,1752664245266,-460.0,0.00021369,2]
[372509903,1752664245276,-460.0,0.00021369,2]
[372509904,1752664245285,-435.08737993,0.00021555,5]
[372509905,1752664245295,-460.0,0.00021643,2]
[372509906,1752664245304,-460.0,0.00021643,2]
[372509907,1752664245313,-519.68,0.00021643,2]
[372509908,1752664245323,-1039.29,0.00021643,2]
[372509909,1752664245333,-460.0,0.00021643,2]
[372509910,1752664245342,-462.23,0.00021643,2]
[372509911,1752664245352,-460.0,0.00021643,2]
[372509912,1752664245361,-584.32,0.00021643,2]
[372509913,1752664245371,-460.0,0.00021643,2]
[372509914,1752664245380,-460.0,0.00021643,2]
[372509915,1752664245389,-505.56,0.00021643,2]
[372509916,1752664245399,-460.0,0.00021643,2]
[372509917,1752664245408,-500.85482562,0.00021671,2]
[372509918,1752664245417,-503.86476806,0.00021671,2]
[372509919,1752664245427,-501.90551534,0.00021671,2]
[372509920,1752664245437,-501.58314376,0.00021671,2]
[372509921,1752664245447,-500.0,0.00021671,2]
[372509922,1752664245456,-435.08737993,0.00021762,5]
[372509923,1752664245466,-500.0,0.00021862,2]
[372509924,1752664245476,-360.0,0.00021913,2]
[372509925,1752664245485,-460.0,0.00021917,2]
[372509926,1752664245495,-460.0,0.00021917,2]
[372509927,1752664245504,-519.68,0.00021917,2]
[372509928,1752664245514,-1039.29,0.00021917,2]
[372509929,1752664245524,-462.23,0.00021917,2]
[372509930,1752664245533,-460.0,0.00021917,2]
[372509931,1752664245543,-460.0,0.00021917,2]
[372509932,1752664245554,-584.32,0.00021917,2]
[372509933,1752664245565,-460.0,0.00021917,2]
[372509934,1752664245575,-460.0,0.00021917,2]
[372509935,1752664245584,-505.56,0.00021917,2]
[372509936,1752664245594,-460.0,0.00021917,2]
[372509937,1752664245605,-435.08737993,0.00021969,6]
[372509938,1752664245614,-611.68,0.00022,7]
[372509939,1752664245624,-313.19,0.00022,6]
[372509940,1752664245635,-435.08737993,0.00022176,6]
[372509941,1752664245646,-460.0,0.00022191,2]
[372509942,1752664245656,-460.0,0.00022191,2]
[372509943,1752664245665,-519.68,0.00022191,2]
[372509944,1752664245675,-1039.29,0.00022191,2]
[372509945,1752664245685,-462.23,0.00022191,2]
[372509946,1752664245695,-200.44,0.00022191,2]
[372509947,1752664245704,-460.0,0.00022191,2]
[372509948,1752664245714,-584.32,0.00022191,2]
[372509950,1752664245723,-456.12,0.00022191,2]
[372509952,1752664245733,-460.0,0.00022191,2]
[372509954,1752664245742,-505.56,0.00022191,2]
[372509955,1752664245752,-460.0,0.00022191,2]
[372509956,1752664245761,-500.0,0.00022219,2]
[372509957,1752664245771,-3059.16587204,0.00022261,2]
[372509958,1752664245781,-661.19980301,0.00022349,2]
[372509959,1752664245790,-207.4,0.00022361,2]
[372509960,1752664245799,-500.0,0.00022361,2]
[372509961,1752664245809,-500.0,0.00022361,2]
[372509962,1752664245818,-500.0,0.00022361,2]
[372509963,1752664245827,-500.0,0.00022361,2]
[372509964,1752664245837,-500.0,0.00022361,2]
[372509965,1752664245847,-500.0,0.00022361,2]
[372509966,1752664245856,-500.0,0.00022361,2]
[372509967,1752664245866,-500.0,0.00022361,2]
[372509968,1752664245876,-500.0,0.00022361,2]
[372509969,1752664245885,-273.72678958,0.00022361,2]
[372509970,1752664245895,-435.08737993,0.00022383,7]
[372509971,1752664245905,-240.0,0.00022461,2]
[372509972,1752664245916,-505.96,0.00022465,2]
[372509973,1752664245926,-460.0,0.00022465,2]
[372509974,1752664245936,-519.68,0.00022465,2]
[372509975,1752664245946,-1039.29,0.00022465,2]
[372509976,1752664245956,-462.23,0.00022465,2]
[372509977,1752664245965,-460.0,0.00022465,2]
[372509978,1752664245974,-584.32,0.00022465,2]
[372509979,1752664245984,-460.0,0.00022465,2]
[372509980,1752664245993,-505.56,0.00022465,2]
[372509981,1752664246002,-460.0,0.00022465,2]
[372509982,1752664246012,-435.08737993,0.0002259,7]
[372509983,1752664246021,-460.0,0.00022739,2]
[372509984,1752664246030,-519.68,0.00022739,2]
[372509985,1752664246039,-1039.29,0.00022739,2]
[372509986,1752664246060,-462.23,0.00022739,2]
[372509987,1752664246071,-460.0,0.00022739,2]
[372509988,1752664246081,-584.32,0.00022739,2]
[372509989,1752664246091,-460.0,0.00022739,2]
[372509990,1752664246101,-505.56,0.00022739,2]
[372509991,1752664246111,-460.0,0.00022739,2]
[372509992,1752664246121,-587.0,0.00022776,2]
[372509993,1752664246132,-435.08737993,0.00022797,7]
[372509994,1752664246142,-14783.55,0.000229,7]
[372509995,1752664246152,-763.96,0.000229,7]
[372509996,1752664246162,-331.2002356,0.00023,2]
[372509997,1752664246172,-435.08737993,0.00023003,8]
[372509998,1752664246183,-460.0,0.00023013,2]
[372509999,1752664246192,-519.68,0.00023013,2]
[372510000,1752664246202,-1039.29,0.00023013,2]
[372510001,1752664246213,-462.23,0.00023013,2]
[372510002,1752664246223,-460.0,0.00023013,2]
[372510003,1752664246234,-584.32,0.00023013,2]
[372510004,1752664246244,-460.0,0.00023013,2]
[372510005,1752664246254,-505.56,0.00023013,2]
[372510006,1752664246265,-460.0,0.00023013,2]
[372510007,1752664246275,-435.08737993,0.0002321,8]
[372510008,1752664246285,-460.0,0.00023287,2]
[372510009,1752664246295,-519.68,0.00023287,2]
[372510010,1752664246305,-1039.29,0.00023287,2]
[372510011,1752664246316,-462.23,0.00023287,2]
[372510012,1752664246325,-460.0,0.00023287,2]
[372510013,1752664246335,-584.32,0.00023287,2]
[372510014,1752664246344,-460.0,0.00023287,2]
[372510015,1752664246354,-505.56,0.00023287,2]
[372510016,1752664246364,-426.76,0.00023287,2]
[372510017,1752664246373,-435.08737993,0.00023417,9]
[372510018,1752664246383,-661.19980301,0.00023429,2]
[372510019,1752664246392,-460.0,0.00023561,2]
[372510020,1752664246402,-519.68,0.00023561,2]
[372510021,1752664246411,-1039.29,0.00023561,2]
[372510022,1752664246421,-462.23,0.00023561,2]
[372510023,1752664246430,-460.0,0.00023561,2]
[372510024,1752664246440,-584.32,0.00023561,2]
[372510025,1752664246449,-460.0,0.00023561,2]
[372510026,1752664246458,-505.56,0.00023561,2]
[372510027,1752664246468,-435.08737993,0.00023624,9]
[372510028,1752664246477,-10018.15424856,0.0002363,3]
[372510029,1752664246486,-520.85416667,0.0002363,3]
[372510030,1752664246495,-476.07036022,0.0002363,3]
[372510031,1752664246505,-12605.49131908,0.0002363,3]
[372510032,1752664246514,-230.8109288,0.0002363,3]
[372510033,1752664246524,-215.0738,0.0002373,2]
[372510034,1752664246533,-435.08737993,0.00023831,10]
[372510035,1752664246543,-155.44,0.00023835,2]
[372510036,1752664246556,-519.68,0.00023835,2]
[372510037,1752664246566,-1039.29,0.00023835,2]
[372510038,1752664246575,-462.23,0.00023835,2]
[372510039,1752664246584,-573.35,0.00023835,2]
[372510040,1752664246594,-584.32,0.00023835,2]
[372510041,1752664246604,-235.65,0.00023835,2]
[372510042,1752664246613,-505.56,0.00023835,2]
[372510043,1752664246624,-2081.0694961,0.000239,2]
[372510044,1752664246636,-3059.16587203,0.00023929,2]
[372510045,1752664246645,-840.0,0.00024,2]
[372510046,1752664246791,-1000.0,0.00024,2]
[372510047,1752664246801,-285.40740914,0.00024,7]
[372510048,1752664246810,-1683.153,0.00024,10]
[372510049,1752664246818,-520.85416667,0.00024,7]
[372510050,1752664246828,-435.08737993,0.00024038,10]
[372510051,1752664246837,-325.51601707,0.00024054,2]
[372510052,1752664246846,-519.68,0.00024109,2]
[372510053,1752664246855,-404.30530871,0.00024109,2]
[372510054,1752664246865,-1617.22123483,0.00024109,2]
[372510055,1752664246874,-3638.74777837,0.00024109,2]
[372510056,1752664246883,-6468.88493932,0.00024109,2]
[372510057,1752664246893,-10097.52508497,0.00024109,2]
[372510058,1752664246902,-4013.89011524,0.00024109,2]
[372510059,1752664246914,-1039.29,0.00024109,2]
[372510060,1752664246924,-462.23,0.00024109,2]
[372510061,1752664246933,-584.32,0.00024109,2]
[372510062,1752664246943,-505.56,0.00024109,2]
[372510063,1752664246953,-435.08737993,0.00024245,10]
[372510064,1752664246964,-150.0,0.000243,2]
[372510065,1752664246973,-519.68,0.00024383,2]
[372510066,1752664246982,-1039.29,0.00024383,2]
[372510067,1752664246991,-462.23,0.00024383,2]
[372510068,1752664247003,-584.32,0.00024383,2]
[372510069,1752664247012,-505.56,0.00024383,2]
[372510070,1752664247021,-14783.55,0.000244,7]
[372510071,1752664247030,-763.96,0.000244,7]
[372510072,1752664247040,-151.0,0.000244,6]
[372510073,1752664247049,-435.08737993,0.00024452,11]
[372510074,1752664247059,-661.19980301,0.00024508,2]
[372510075,1752664247068,-250.0,0.00024546,2]
[372510076,1752664247079,-519.68,0.00024657,2]
[372510077,1752664247090,-1039.29,0.00024657,2]
[372510078,1752664247100,-462.23,0.00024657,2]
[372510079,1752664247110,-584.32,0.00024657,2]
[372510080,1752664247119,-505.56,0.00024657,2]
[372510081,1752664247129,-435.08737993,0.00024659,11]
[372510082,1752664247139,-823.0,0.00024821,2]
[372510083,1752664247148,-435.08737993,0.00024866,12]
[372510084,1752664247158,-624.55,0.000249,2]
[372510085,1752664247170,-845.00776348,0.000249,2]
[372510086,1752664247180,-577631.170925,0.000249,2]
[372510087,1752664247189,-519.68,0.00024931,2]
[372510088,1752664247199,-1039.29,0.00024931,2]
[372510089,1752664247208,-462.23,0.00024931,2]
[372510090,1752664247218,-584.32,0.00024931,2]
[372510091,1752664247227,-505.56,0.00024931,2]
[372510092,1752664247237,-500.0,0.00025,9]
[372510093,1752664247247,-500.0,0.00025,9]
[372510094,1752664247258,-161.0,0.00025,7]
[372510095,1752664247267,-435.08737993,0.00025072,12]
[372510096,1752664247278,-223.0315306,0.00025099,2]
[372510097,1752664247290,-151.0,0.000251,15]
[372510098,1752664247301,-2200.0,0.00025103,2]
[372510099,1752664247311,-935.174123,0.00025184,16]
[372510100,1752664247321,-519.68,0.00025205,2]
[372510101,1752664247331,-1039.29,0.00025205,2]
[372510102,1752664247355,-462.23,0.00025205,2]
[372510103,1752664247365,-584.32,0.00025205,2]
[372510104,1752664247375,-505.56,0.00025205,2]
[372510105,1752664247385,-3252.66868497,0.00025279,2]
[372510106,1752664247394,-435.08737993,0.00025279,12]
[372510107,1752664247403,-611.68,0.000253,7]
[372510108,1752664247413,-458.06,0.000253,31]
[372510109,1752664247423,-458.06,0.000253,31]
[372510110,1752664247432,-458.06,0.000253,31]
[372510111,1752664247442,-458.06,0.000253,31]
[372510112,1752664247452,-458.06,0.000253,31]
[372510113,1752664247462,-458.06,0.000253,31]
[372510114,1752664247471,-458.06,0.000253,31]
[372510115,1752664247480,-458.06,0.000253,31]
[372510116,1752664247490,-458.06,0.000253,31]
[372510117,1752664247500,-458.06,0.000253,31]
[372510118,1752664247509,-458.06,0.000253,31]
[372510119,1752664247519,-458.06,0.000253,31]
[372510120,1752664247528,-458.06,0.000253,31]
[372510121,1752664247537,-458.06,0.000253,31]
[372510122,1752664247548,-458.06,0.000253,31]
[372510123,1752664247560,-458.06,0.000253,31]
[372510124,1752664247570,-2000.0,0.000254,2]
[372510125,1752664247579,-2000.0,0.000254,2]
[372510126,1752664247589,-800.0,0.00025432,2]
[372510127,1752664247598,-167.30025117,0.00025443,2]
[372510128,1752664247608,-500.0,0.00025472,2]
[372510129,1752664247618,-800.0,0.00025478,2]
[372510130,1752664247629,-519.9159584,0.00025479,2]
[372510131,1752664247639,-1039.32223507,0.00025479,2]
[372510132,1752664247648,-462.31,0.00025479,2]
[372510133,1752664247658,-584.44,0.00025479,2]
[372510134,1752664247668,-505.68,0.00025479,2]
[372510135,1752664247678,-762.0,0.0002548,2]
[372510136,1752664247687,-500.0,0.0002548,2]
[372510137,1752664247697,-151.0,0.0002548,2]
[372510138,1752664247707,-500.0,0.0002548,2]
[372510139,1752664247717,-151.0,0.0002548,2]
[372510140,1752664247726,-270.82089474,0.0002548,2]
[372510141,1752664247736,-151.0,0.0002548,2]
[372510142,1752664247745,-1500.0,0.00025482,2]
[372510143,1752664247754,-800.0,0.00025486,2]
[372510144,1752664247764,-435.08737993,0.00025486,13]
[372510145,1752664247774,-2000.0,0.000255,2]
[372510146,1752664247784,-1500.0,0.00025505,2]
[372510147,1752664247793,-800.0,0.00025506,2]
[372510148,1752664247803,-800.0,0.00025508,2]
[372510149,1752664247812,-500.0,0.00025526,2]
[372510150,1752664247822,-800.0,0.0002555,2]
[372510151,1752664247831,-800.0,0.00025551,2]
[372510152,1752664247841,-500.0,0.00025571,2]
[372510153,1752664247851,-661.19980301,0.00025588,2]
[372510154,1752664247860,-343.96916893,0.00025596,2]
[372510155,1752664247870,-3059.16587203,0.00025596,2]
[372510156,1752664247884,-458.06,0.000256,31]
[372510157,1752664247894,-458.06,0.000256,31]
[372510158,1752664247903,-458.06,0.000256,31]
[372510159,1752664247913,-458.06,0.000256,31]
[372510160,1752664247923,-458.06,0.000256,31]
[372510161,1752664247933,-458.06,0.000256,31]
[372510162,1752664247943,-458.06,0.000256,31]
[372510163,1752664247952,-458.06,0.000256,31]
[372510164,1752664247962,-458.06,0.000256,31]
[372510165,1752664247971,-458.06,0.000256,31]
[372510166,1752664247981,-458.06,0.000256,31]
[372510167,1752664247990,-458.06,0.000256,31]
[372510168,1752664247999,-458.06,0.000256,31]
[372510169,1752664248008,-458.06,0.000256,31]
[372510170,1752664248018,-458.06,0.000256,31]
[372510171,1752664248038,-458.06,0.000256,31]
[372510172,1752664248047,-458.06,0.000256,31]
[372510173,1752664248058,-458.06,0.000256,31]
[372510174,1752664248068,-458.06,0.000256,31]
[372510175,1752664248077,-458.06,0.000256,31]
[372510176,1752664248087,-458.06,0.000256,31]
[372510177,1752664248097,-458.06,0.000256,31]
[372510178,1752664248108,-458.06,0.000256,31]
[372510179,1752664248118,-458.06,0.000256,31]
[372510180,1752664248128,-150.0,0.000256,2]
[372510181,1752664248138,-1500.0,0.00025627,2]
[372510182,1752664248148,-800.0,0.00025657,2]
[372510183,1752664248160,-800.0,0.00025658,2]
[372510184,1752664248170,-1500.0,0.00025682,2]
[372510185,1752664248180,-151.0,0.00025684,7]
[372510186,1752664248190,-151.0,0.00025684,7]
[372510187,1752664248200,-151.0,0.00025684,7]
[372510188,1752664248210,-151.0,0.00025684,7]
[372510189,1752664248220,-151.0,0.00025684,7]
[372510190,1752664248230,-151.0,0.00025684,7]
[372510191,1752664248240,-151.0,0.00025684,7]
[372510192,1752664248251,-151.0,0.00025684,7]
[372510193,1752664248262,-151.0,0.00025684,7]
[372510194,1752664248272,-151.0,0.00025684,7]
[372510195,1752664248282,-151.0,0.00025684,7]
[372510196,1752664248293,-151.0,0.00025684,7]
[372510197,1752664248303,-151.0,0.00025684,7]
[372510198,1752664248313,-151.0,0.00025684,7]
[372510199,1752664248322,-151.0,0.00025684,7]
[372510200,1752664248332,-151.0,0.00025684,7]
[372510201,1752664248343,-175.14952,0.00025684,7]
[372510202,1752664248354,-151.0,0.00025684,7]
[372510203,1752664248364,-151.0,0.00025684,7]
[372510204,1752664248374,-151.0,0.00025684,7]
[372510205,1752664248385,-258.77679,0.00025684,7]
[372510206,1752664248395,-277.085169,0.00025684,7]
[372510207,1752664248405,-277.085169,0.00025684,7]
[372510208,1752664248414,-277.085169,0.00025684,7]
[372510209,1752664248425,-277.085169,0.00025684,7]
[372510210,1752664248435,-277.085169,0.00025684,7]
[372510211,1752664248445,-277.085169,0.00025684,7]
[372510212,1752664248455,-277.085169,0.00025684,7]
[372510213,1752664248465,-277.085169,0.00025684,7]
[372510214,1752664248475,-277.085169,0.00025684,7]
[372510215,1752664248485,-277.085169,0.00025684,7]
[372510216,1752664248495,-277.085169,0.00025684,7]
[372510217,1752664248505,-277.085169,0.00025684,7]
[372510218,1752664248515,-277.085169,0.00025684,7]
[372510219,1752664248526,-277.085169,0.00025684,7]
[372510220,1752664248536,-151.0,0.00025684,7]
[372510221,1752664248547,-151.0,0.00025684,7]
[372510222,1752664248561,-151.0,0.00025684,7]
[372510223,1752664248571,-151.0,0.00025684,7]
[372510224,1752664248581,-153.055661,0.00025684,7]
[372510225,1752664248591,-151.0,0.00025684,7]
[372510226,1752664248602,-151.0,0.00025684,7]
[372510227,1752664248612,-151.0,0.00025684,7]
[372510228,1752664248622,-151.0,0.00025684,7]
[372510229,1752664248632,-151.0,0.00025684,7]
[372510230,1752664248642,-151.0,0.00025684,7]
[372510231,1752664248652,-151.0,0.00025684,7]
[372510232,1752664248662,-151.0,0.00025684,7]
[372510233,1752664248672,-151.0,0.00025684,7]
[372510234,1752664248682,-151.0,0.00025684,7]
[372510235,1752664248692,-151.0,0.00025684,7]
[372510236,1752664248701,-151.0,0.00025684,7]
[372510237,1752664248712,-151.0,0.00025684,7]
[372510238,1752664248722,-151.0,0.00025684,7]
[372510239,1752664248732,-151.0,0.00025684,7]
[372510240,1752664248742,-151.0,0.00025684,7]
[372510241,1752664248751,-151.0,0.00025684,7]
[372510242,1752664248760,-262.677823,0.00025684,7]
[372510243,1752664248770,-151.819201,0.00025684,7]
[372510244,1752664248780,-151.819201,0.00025684,7]
[372510245,1752664248790,-151.819201,0.00025684,7]
[372510246,1752664248800,-151.819201,0.00025684,7]
[372510247,1752664248811,-151.819201,0.00025684,7]
[372510248,1752664248820,-151.819201,0.00025684,7]
[372510249,1752664248830,-151.819201,0.00025684,7]
[372510250,1752664248840,-151.819201,0.00025684,7]
[372510251,1752664248849,-151.819201,0.00025684,7]
[372510252,1752664248859,-151.819201,0.00025684,7]
[372510253,1752664248869,-151.819201,0.00025684,7]
[372510254,1752664248879,-151.819201,0.00025684,7]
[372510255,1752664248890,-151.819201,0.00025684,7]
[372510256,1752664248900,-151.819201,0.00025684,7]
[372510257,1752664248909,-151.819201,0.00025684,7]
[372510258,1752664248919,-151.819201,0.00025684,7]
[372510259,1752664248929,-184.152666,0.00025684,7]
[372510260,1752664248939,-184.152666,0.00025684,7]
[372510261,1752664248948,-184.152666,0.00025684,7]
[372510262,1752664248958,-184.152666,0.00025684,7]
[372510263,1752664248967,-184.152666,0.00025684,7]
[372510264,1752664248977,-184.152666,0.00025684,7]
[372510265,1752664248987,-184.152666,0.00025684,7]
[372510266,1752664248997,-184.152666,0.00025684,7]
[372510267,1752664249006,-184.152666,0.00025684,7]
[372510268,1752664249017,-184.152666,0.00025684,7]
[372510269,1752664249027,-184.152666,0.00025684,7]
[372510270,1752664249036,-184.152666,0.00025684,7]
[372510271,1752664249046,-184.152666,0.00025684,7]
[372510272,1752664249056,-184.152666,0.00025684,7]
[372510273,1752664249065,-184.152666,0.00025684,7]
[372510274,1752664249075,-184.152666,0.00025684,7]
[372510275,1752664249085,-226.808204,0.00025687,7]
[372510276,1752664249095,-151.0,0.00025687,7]
[372510277,1752664249105,-151.0,0.00025687,7]
[372510278,1752664249115,-151.0,0.00025687,7]
[372510279,1752664249124,-151.0,0.00025687,7]
[372510280,1752664249134,-151.0,0.00025687,7]
[372510281,1752664249144,-151.0,0.00025687,7]
[372510282,1752664249154,-151.0,0.00025687,7]
[372510283,1752664249164,-151.0,0.00025687,7]
[372510284,1752664249174,-151.0,0.00025687,7]
[372510285,1752664249184,-151.0,0.00025687,7]
[372510286,1752664249194,-151.0,0.00025687,7]
[372510287,1752664249204,-151.0,0.00025687,7]
[372510288,1752664249214,-151.0,0.00025687,7]
[372510289,1752664249224,-151.0,0.00025687,7]
[372510290,1752664249234,-151.0,0.00025687,7]
[372510291,1752664249360,-151.0,0.00025687,7]
[372510292,1752664249370,-151.0,0.00025687,7]
[372510293,1752664249380,-151.0,0.00025687,7]
[372510294,1752664249390,-151.0,0.00025687,7]
[372510295,1752664249399,-151.0,0.00025687,7]
[372510296,1752664249409,-152.29328,0.00025687,7]
[372510297,1752664249418,-151.0,0.00025687,7]
[372510298,1752664249427,-275.083564,0.00025687,7]
[372510299,1752664249437,-151.0,0.00025687,7]
[372510300,1752664249446,-151.0,0.00025687,7]
[372510301,1752664249455,-151.99573,0.00025687,7]
[372510302,1752664249465,-151.0,0.00025687,7]
[372510303,1752664249477,-151.0,0.00025687,7]
[372510304,1752664249487,-151.0,0.00025687,7]
[372510305,1752664249496,-151.0,0.00025687,7]
[372510306,1752664249506,-209.6472,0.00025687,7]
[372510307,1752664249515,-151.0,0.00025688,7]
[372510308,1752664249525,-245.270172,0.00025688,7]
[372510309,1752664249534,-151.0,0.00025688,7]
[372510310,1752664249544,-185.190813,0.00025688,7]
[372510311,1752664249559,-151.0,0.00025688,7]
[372510312,1752664249568,-151.0,0.00025688,7]
[372510313,1752664249577,-151.0,0.00025688,7]
[372510314,1752664249587,-151.0,0.00025688,7]
[372510315,1752664249596,-151.0,0.00025688,7]
[372510316,1752664249606,-151.0,0.00025688,7]
[372510317,1752664249615,-151.0,0.00025688,7]
[372510318,1752664249625,-151.0,0.00025688,7]
[372510319,1752664249635,-151.0,0.00025688,7]
[372510320,1752664249644,-151.0,0.00025688,7]
[372510321,1752664249654,-151.0,0.00025688,7]
[372510322,1752664249663,-151.0,0.00025688,7]
[372510323,1752664249673,-151.0,0.00025688,7]
[372510324,1752664249683,-151.0,0.00025688,7]
[372510325,1752664249692,-294.09542,0.00025688,7]
[372510326,1752664249701,-152.41207,0.00025688,7]
[372510327,1752664249711,-152.41207,0.00025688,7]
[372510328,1752664249720,-152.41207,0.00025688,7]
[372510329,1752664249730,-152.41207,0.00025688,7]
[372510330,1752664249739,-152.41207,0.00025688,7]
[372510331,1752664249749,-152.41207,0.00025688,7]
[372510332,1752664249758,-152.41207,0.00025688,7]
[372510333,1752664249768,-152.41207,0.00025688,7]
[372510334,1752664249777,-152.41207,0.00025688,7]
[372510335,1752664249787,-152.41207,0.00025688,7]
[372510336,1752664249796,-152.41207,0.00025688,7]
[372510337,1752664249805,-152.41207,0.00025688,7]
[372510338,1752664249814,-152.41207,0.00025688,7]
[372510339,1752664249824,-152.41207,0.00025688,7]
[372510340,1752664249833,-152.41207,0.00025688,7]
[372510341,1752664249843,-152.41207,0.00025688,7]
[372510342,1752664249853,-2187.43966,0.00025688,7]
[372510343,1752664249863,-2187.43966,0.00025688,7]
[372510344,1752664249872,-2187.43966,0.00025688,7]
[372510345,1752664249883,-2187.43966,0.00025688,7]
[372510346,1752664249892,-2187.43966,0.00025688,7]
[372510347,1752664249902,-2187.43966,0.00025688,7]
[372510348,1752664249912,-2187.43966,0.00025688,7]
[372510349,1752664249922,-2187.43966,0.00025688,7]
[372510350,1752664249931,-2187.43966,0.00025688,7]
[372510351,1752664249940,-2187.43966,0.00025688,7]
[372510352,1752664249949,-2187.43966,0.00025688,7]
[372510353,1752664249960,-2187.43966,0.00025688,7]
[372510354,1752664249970,-2187.43966,0.00025688,7]
[372510355,1752664249980,-2187.43966,0.00025688,7]
[372510356,1752664249991,-2187.43966,0.00025688,7]
[372510357,1752664250001,-2187.43966,0.00025688,7]
[372510358,1752664250010,-151.0,0.00025688,7]
[372510359,1752664250019,-151.0,0.00025688,7]
[372510360,1752664250029,-151.0,0.00025688,7]
[372510361,1752664250038,-151.0,0.00025688,7]
[372510362,1752664250049,-151.0,0.00025688,7]
[372510363,1752664250059,-151.0,0.00025688,7]
[372510364,1752664250069,-151.0,0.00025688,7]
[372510365,1752664250078,-151.0,0.00025688,7]
[372510366,1752664250088,-151.0,0.00025688,7]
[372510367,1752664250097,-151.0,0.00025688,7]
[372510368,1752664250107,-151.0,0.00025688,7]
[372510369,1752664250117,-151.0,0.00025688,7]
[372510370,1752664250126,-151.0,0.00025688,7]
[372510371,1752664250136,-151.0,0.00025688,7]
[372510372,1752664250146,-151.0,0.00025688,7]
[372510373,1752664250155,-151.0,0.00025688,7]
[372510374,1752664250165,-151.0,0.00025688,7]
[372510375,1752664250174,-151.0,0.00025688,7]
[372510376,1752664250184,-1266.445239,0.00025688,7]
[372510377,1752664250193,-1266.445239,0.00025688,7]
[372510378,1752664250202,-1266.445239,0.00025688,7]
[372510379,1752664250212,-1266.445239,0.00025688,7]
[372510380,1752664250222,-1266.445239,0.00025688,7]
[372510381,1752664250232,-1266.445239,0.00025688,7]
[372510382,1752664250241,-1266.445239,0.00025688,7]
[372510383,1752664250251,-1266.445239,0.00025688,7]
[372510384,1752664250261,-1266.445239,0.00025688,7]
[372510385,1752664250270,-1266.445239,0.00025688,7]
[372510386,1752664250280,-1266.445239,0.00025688,7]
[372510387,1752664250289,-1266.445239,0.00025688,7]
[372510388,1752664250299,-1266.445239,0.00025688,7]
[372510389,1752664250309,-1266.445239,0.00025688,7]
[372510390,1752664250319,-1266.445239,0.00025688,7]
[372510391,1752664250328,-1266.445239,0.00025688,7]
[372510392,1752664250337,-1500.0,0.00025688,14]
[372510393,1752664250347,-1500.0,0.00025688,14]
[372510394,1752664250357,-1500.0,0.00025688,14]
[372510395,1752664250366,-1500.0,0.00025688,14]
[372510396,1752664250375,-1500.0,0.00025688,14]
[372510397,1752664250385,-1500.0,0.00025688,14]
[372510398,1752664250395,-1500.0,0.00025688,14]
[372510399,1752664250406,-1500.0,0.00025688,14]
[372510400,1752664250415,-1500.0,0.00025688,14]
[372510401,1752664250424,-1500.0,0.00025688,14]